fUSD/lending_fUSD_20241203
["ID","MTS","AMOUNT","RATE_DAILY","PERIOD"]
[344048366,1733246466359,-500.0,0.00025547,120]
[344048367,1733246466407,-1570.3,0.00025547,120]
[344048368,1733246466455,-2242.92,0.00025547,120]
[344048369,1733246466504,-645.19,0.00025547,120]
[344048370,1733246466553,-537.58,0.00025547,120]
[344048371,1733246466601,-748.2,0.00025547,120]
[344048372,1733246466648,-1019.59,0.00025547,120]
[344048373,1733246466695,-500.0,0.00025547,120]
[344048374,1733246466741,-500.0,0.00025547,120]
[344048375,1733246466788,-1588.86,0.00025547,120]
[344048376,1733246466837,-532.62,0.00025547,120]
[344048377,1733246466886,-500.0,0.00025547,120]
[344048378,1733246466934,-2040.41,0.00025547,120]
[344048379,1733246466982,-553.08446963,0.00025547,120]
[344048380,1733246467028,-2779.73,0.00025547,120]
[344048381,1733246467076,-3868.89,0.00025547,120]
[344048382,1733246467122,-1070.97,0.00025547,120]
[344048383,1733246467169,-500.0,0.00025547,120]
[344048384,1733246467217,-500.0,0.00025547,120]
[344048385,1733246467263,-500.0,0.00025547,120]
[344048386,1733246467310,-500.0,0.00025547,120]
[344048387,1733246467358,-500.0,0.00025547,120]
[344048388,1733246467406,-977.08,0.00025547,30]
[344048389,1733246467454,-500.0,0.00025547,120]
[344048390,1733246467502,-1984.15,0.00025547,120]
[344048391,1733246467552,-1226.71,0.00025547,120]
[344048392,1733246467600,-1338.25,0.00025547,120]
[344048393,1733246467649,-2300.5,0.00025547,120]
[344048394,1733246467698,-629.46757805,0.00025547,120]
[344048395,1733246467749,-761.67,0.00025547,120]
[344048396,1733246467798,-1413.58,0.00025547,120]
[344048397,1733246467848,-1756.58,0.00025547,120]
[344048398,1733246467899,-500.0,0.00025547,120]
[344048399,1733246467950,-1092.7,0.00025547,120]
[344048400,1733246468003,-500.0,0.00025547,120]
[344048401,1733246468053,-1852.13,0.00025547,120]
[344048402,1733246468104,-618.36,0.00025547,120]
[344048403,1733246468157,-1123.68,0.00025547,120]
[344048404,1733246468208,-500.0,0.00025547,120]
[344048405,1733246468262,-2511.08,0.00025547,120]
[344048406,1733246468312,-14999.25,0.00025547,120]
[344048407,1733246468361,-500.0,0.00025547,120]
[344048408,1733246468412,-500.0,0.00025547,120]
[344048409,1733246468464,-500.0,0.00025547,120]
[344048410,1733246468520,-1503.1,0.00025547,120]
[344048411,1733246468571,-955.58,0.00025547,120]
[344048412,1733246468621,-500.0,0.00025547,120]
[344048413,1733246468674,-500.0,0.00025547,120]
[344048414,1733246468731,-959.56,0.00025547,120]
[344048415,1733246468782,-1455.85,0.00025547,120]
[344048416,1733246468835,-1176.59,0.00025547,120]
[344048417,1733246468886,-500.0,0.00025547,120]
[344048418,1733246468936,-500.0,0.00025547,120]
[344048419,1733246468985,-500.0,0.00025547,120]
[344048420,1733246469033,-1909.83,0.00025547,120]
[344048421,1733246469083,-475.10480161,0.00025547,120]
[344048422,1733246469134,-2828.4,0.00025547,120]
[344048423,1733246469184,-3137.48,0.00025547,120]
[344048424,1733246469535,-946.81,0.00025547,120]
[344048425,1733246469590,-500.0,0.00025547,120]
[344048426,1733246469639,-576.06,0.00025547,120]
[344048427,1733246469688,-500.0,0.00025547,120]
[344048428,1733246469735,-500.0,0.00025547,120]
[344048429,1733246469782,-3843.72,0.00025547,120]
[344048430,1733246469831,-769.01,0.00025547,120]
[344048431,1733246469881,-500.0,0.00025547,120]
[344048432,1733246469930,-500.0,0.00025547,120]
[344048433,1733246469977,-500.0,0.00025547,120]
[344048434,1733246470024,-676.76,0.00025547,120]
[344048435,1733246470070,-500.0,0.00025547,120]
[344048436,1733246470118,-1451.86,0.00025547,120]
[344048437,1733246470165,-695.97,0.00025547,120]
[344048438,1733246470212,-500.0,0.00025547,120]
[344048439,1733246470263,-2173.76,0.00025547,120]
[344048440,1733246470310,-1053.62,0.00025547,120]
[344048441,1733246470355,-2487.98,0.00025547,120]
[344048442,1733246470400,-833.33,0.00025547,120]
[344048443,1733246470446,-500.0,0.00025547,120]
[344048444,1733246470492,-2316.5,0.00025547,120]
[344048445,1733246470543,-4866.38,0.00025547,120]
[344048446,1733246470591,-947.83,0.00025547,120]
[344048447,1733246470636,-3087.07,0.00025547,120]
[344048448,1733246470683,-2569.57,0.00025547,120]
[344048449,1733246470728,-1750.75,0.00025547,120]
[344048450,1733246470773,-2123.31,0.00025547,120]
[344048451,1733246470826,-449.81437554,0.00025547,120]
[344048452,1733246470881,-5678.95,0.00025547,120]
[344048453,1733246470929,-890.94,0.00025547,120]
[344048454,1733246470982,-6210.96,0.00025547,120]
[344048455,1733246471030,-1888.85,0.00025547,120]
[344048456,1733246471078,-2277.65,0.00025547,120]
[344048457,1733246471125,-1177.75,0.00025547,120]
[344048458,1733246471177,-150.0,0.00025547,120]
[344048459,1733246471235,-500.0,0.00025547,120]
[344048460,1733246471285,-500.0,0.00025547,120]
[344048461,1733246471338,-500.0,0.00025547,120]
[344048462,1733246471386,-2388.35,0.00025547,120]
[344048463,1733246471436,-1081.68,0.00025547,120]
[344048464,1733246471485,-500.0,0.00025547,120]
[344048465,1733246471535,-2089.47,0.00025547,120]
[344048466,1733246471584,-500.0,0.00025547,120]
[344048467,1733246471633,-500.0,0.00025547,120]
[344048468,1733246471682,-2195.21,0.00025547,120]
[344048469,1733246471731,-1320.17,0.00025547,120]
[344048470,1733246471780,-649.39,0.00025547,120]
[344048471,1733246471828,-11673.27,0.00025547,120]
[344048472,1733246471879,-1539.82,0.00025547,120]
[344048473,1733246471928,-500.0,0.00025547,120]
[344048474,1733246471978,-500.0,0.00025547,120]
[344048475,1733246472026,-2229.1,0.00025547,120]
[344048476,1733246472073,-500.0,0.00025547,120]
[344048477,1733246472120,-204.61282788,0.00025547,120]
[344048478,1733246472168,-1626.37,0.00025547,120]
[344048479,1733246472213,-564.03,0.00025547,120]
[344048480,1733246472264,-892.42,0.00025547,120]
[344048481,1733246472311,-3238.66,0.00025547,120]
[344048482,1733246472359,-1107.9,0.00025547,120]
[344048483,1733246472406,-500.0,0.00025547,120]
[344048484,1733246472452,-500.0,0.00025547,120]
[344048485,1733246472500,-1416.32,0.00025547,120]
[344048486,1733246472548,-771.01,0.00025547,120]
[344048487,1733246472595,-500.0,0.00025547,120]
[344048488,1733246472642,-500.0,0.00025547,120]
[344048489,1733246472690,-794.36,0.00025547,120]
[344048490,1733246472736,-3114.58,0.00025547,120]
[344048491,1733246472784,-1552.96,0.00025547,120]
[344048492,1733246472830,-3034.79,0.00025547,120]
[344048493,1733246472880,-1604.81,0.00025547,120]
[344048494,1733246472930,-9386.34,0.00025547,120]
[344048495,1733246472981,-2511.29,0.00025547,120]
[344048496,1733246473030,-1228.87,0.00025547,120]
[344048497,1733246473079,-293.76995592,0.00025547,120]
[344048498,1733246473129,-1438.16,0.00025547,120]
[344048499,1733246473178,-504.91,0.00025547,120]
[344048500,1733246473228,-500.0,0.00025547,120]
[344048501,1733246473279,-1228.49,0.00025547,120]
[344048502,1733246473326,-987.01,0.00025547,120]
[344048503,1733246473391,-500.0,0.00025547,120]
[344048504,1733246473444,-1869.76,0.00025547,120]
[344048505,1733246473496,-575.2,0.00025547,120]
[344048506,1733246473546,-500.0,0.00025547,120]
[344048507,1733246473596,-1707.41,0.00025547,120]
[344048508,1733246473647,-2000.0,0.00025814,120]
[344048509,1733246473699,-500.0,0.00025821,120]
[344048510,1733246473752,-500.0,0.00025821,120]
[344048511,1733246473803,-500.0,0.00025821,120]
[344048512,1733246473853,-500.0,0.00025821,120]
[344048513,1733246473909,-500.0,0.00025821,120]
[344048514,1733246473961,-500.0,0.00025821,120]
[344048515,1733246474015,-500.0,0.00025821,120]
[344048516,1733246474067,-500.0,0.00025821,120]
[344048517,1733246474123,-500.0,0.00025821,120]
[344048518,1733246474583,-500.0,0.00025821,120]
[344048519,1733246474632,-500.0,0.00025821,120]
[344048520,1733246474679,-500.0,0.00025821,120]
[344048521,1733246474728,-500.0,0.00025821,120]
[344048522,1733246474775,-500.0,0.00025821,120]
[344048523,1733246474833,-204.3734784,0.00025821,120]
[344048524,1733246474887,-500.0,0.00025821,120]
[344048525,1733246474936,-500.0,0.00025821,120]
[344048526,1733246474987,-500.0,0.00025821,120]
[344048527,1733246475035,-500.0,0.00025821,120]
[344048528,1733246475084,-309.71420162,0.00025821,120]
[344048529,1733246475132,-512.83740236,0.00025821,120]
[344048530,1733246475182,-500.0,0.00025821,120]
[344048531,1733246475234,-500.0,0.00025821,120]
[344048532,1733246475283,-500.0,0.00025821,120]
[344048533,1733246475333,-500.0,0.00025821,120]
[344048534,1733246475381,-500.0,0.00025821,120]
[344048535,1733246475431,-250.40147638,0.00025821,120]
[344048536,1733246475482,-500.0,0.00025821,120]
[344048537,1733246475531,-500.0,0.00025821,120]
[344048538,1733246475581,-500.0,0.00025821,120]
[344048539,1733246475629,-1703.96,0.00025821,120]
[344048540,1733246475682,-500.0,0.00025821,120]
[344048541,1733246475736,-445.95614093,0.00025821,30]
[344048542,1733246475786,-568.95,0.00025821,120]
[344048543,1733246475836,-500.0,0.00025821,120]
[344048544,1733246475890,-500.0,0.00025821,120]
[344048545,1733246475939,-500.0,0.00025821,120]
[344048546,1733246475988,-554.96556342,0.00025821,120]
[344048547,1733246476039,-1995.55,0.00025821,120]
[344048548,1733246476089,-520.15594833,0.00025821,120]
[344048549,1733246476139,-500.0,0.00025821,120]
[344048550,1733246476188,-500.0,0.00025821,120]
[344048551,1733246476236,-627.87,0.00025821,120]
[344048552,1733246476286,-500.0,0.00025821,120]
[344048553,1733246476337,-560.09,0.00025821,120]
[344048554,1733246476385,-500.0,0.00025821,120]
[344048555,1733246476434,-500.0,0.00025821,120]
[344048556,1733246476482,-500.0,0.00025821,120]
[344048557,1733246476533,-500.0,0.00025821,120]
[344048558,1733246476583,-500.0,0.00025821,120]
[344048559,1733246476632,-1240.62,0.00025821,120]
[344048560,1733246476681,-500.0,0.00025821,120]
[344048561,1733246476732,-500.0,0.00025821,120]
[344048562,1733246476781,-1155.99,0.00025821,120]
[344048563,1733246476830,-500.0,0.00025821,120]
[344048564,1733246476882,-500.0,0.00025821,120]
[344048565,1733246476931,-500.0,0.00025821,120]
[344048566,1733246476982,-500.0,0.00025821,120]
[344048567,1733246477029,-500.0,0.00025821,120]
[344048568,1733246477076,-500.0,0.00025821,120]
[344048569,1733246477122,-768.58,0.00025821,120]
[344048570,1733246477171,-507.91556192,0.00025821,120]
[344048571,1733246477218,-699.35,0.00025821,120]
[344048572,1733246477269,-500.0,0.00025821,120]
[344048573,1733246477317,-500.0,0.00025821,120]
[344048574,1733246477365,-500.0,0.00025821,120]
[344048575,1733246477414,-500.0,0.00025821,120]
[344048576,1733246477461,-500.0,0.00025821,120]
[344048577,1733246477513,-500.0,0.00025821,120]
[344048578,1733246477562,-1159.6,0.00025821,120]
[344048579,1733246477611,-552.88017657,0.00025821,120]
[344048580,1733246477660,-500.0,0.00025821,120]
[344048581,1733246477708,-500.0,0.00025821,120]
[344048582,1733246477759,-1063.83,0.00025821,120]
[344048583,1733246477807,-500.0,0.00025821,120]
[344048584,1733246477856,-500.0,0.00025821,120]
[344048585,1733246477906,-233.78120253,0.00025821,120]
[344048586,1733246477955,-1005.73,0.00025821,120]
[344048587,1733246478003,-500.0,0.00025821,120]
[344048588,1733246478054,-834.76,0.00025821,120]
[344048589,1733246478103,-500.0,0.00025821,120]
[344048590,1733246478154,-500.0,0.00025821,120]
[344048591,1733246478206,-940.98,0.00025821,120]
[344048592,1733246478257,-150.64327096,0.00025821,120]
[344048593,1733246478309,-500.0,0.00025821,120]
[344048594,1733246478358,-684.34,0.00025821,120]
[344048595,1733246478415,-500.0,0.00025821,120]
[344048596,1733246478478,-1040.24,0.00025821,120]
[344048597,1733246478530,-500.0,0.00025821,120]
[344048598,1733246478580,-1156.41,0.00025821,120]
[344048599,1733246478630,-842.25,0.00025821,120]
[344048600,1733246478680,-500.0,0.00025821,120]
[344048601,1733246478737,-500.0,0.00025821,120]
[344048602,1733246478790,-500.0,0.00025821,120]
[344048603,1733246478849,-1005.6,0.00025821,120]
[344048604,1733246478903,-500.0,0.00025821,120]
[344048605,1733246478958,-500.0,0.00025821,120]
[344048606,1733246479012,-1971.36,0.00025821,120]
[344048607,1733246479064,-673.67,0.00025821,120]
[344048608,1733246479122,-500.0,0.00025821,120]
[344048609,1733246479174,-500.0,0.00025821,120]
[344048610,1733246479231,-552.67633006,0.00025821,120]
[344048611,1733246479285,-500.0,0.00025821,120]
[344048612,1733246479338,-500.0,0.00025821,120]
[344048613,1733246479743,-511.48297198,0.00025821,120]
[344048614,1733246479794,-2004.58,0.00025821,120]
[344048615,1733246479842,-772.87,0.00025821,120]
[344048616,1733246479890,-500.0,0.00025821,120]
[344048617,1733246479940,-500.0,0.00025821,120]
[344048618,1733246479988,-626.55553765,0.00025821,120]
[344048619,1733246480039,-1051.56,0.00025821,120]
[344048620,1733246480091,-664.51,0.00025821,120]
[344048621,1733246480143,-500.0,0.00025821,120]
[344048622,1733246480196,-500.0,0.00025821,120]
[344048623,1733246480245,-1227.86,0.00025821,120]
[344048624,1733246480301,-500.0,0.00025821,120]
[344048625,1733246480355,-1154.24305589,0.00025821,120]
[344048626,1733246482452,750.0,7.001e-05,2]
[344048627,1733246499403,171.31,6.928e-05,2]
[344048628,1733246504528,200.0,6.908e-05,2]
[344048629,1733246506011,23900.0,6.867e-05,2]
[344048630,1733246515053,300.0,6.866e-05,2]
[344048631,1733246534448,929.16,7.001e-05,2]
[344048632,1733246548959,250.0,6.778e-05,2]
[344048633,1733246566335,1500.0,6.75e-05,2]
[344048634,1733246574663,202.06,6.797e-05,2]
[344048635,1733246615276,355.95,6.996e-05,2]
[344048636,1733246616763,250.0,6.996e-05,2]
[344048638,1733246705363,150.6207372,6.929e-05,2]
[344048640,1733246754493,5307.63408097,6.94e-05,2]
[344048641,1733246766440,2156.53356966,7e-05,2]
[344048644,1733246794181,981.97,6.9e-05,2]
[344048645,1733246821105,400.0,7e-05,2]
[344048646,1733246823480,800.0,7.1e-05,2]
[344048655,1733246850182,17171.31239731,1e-06,7]
[344048665,1733246969879,200.0,6.804e-05,2]
[344048673,1733247031916,-1300.0,7.2e-05,2]
[344048674,1733247031928,-192.95,7.211e-05,2]
[344048675,1733247031939,-512.553,7.252e-05,2]
[344048676,1733247031951,-1700.0,7.3e-05,2]
[344048677,1733247031962,-500.0,7.373e-05,2]
[344048678,1733247031974,-300.0,7.397e-05,2]
[344048679,1733247031984,-300.0,7.397e-05,2]
[344048680,1733247031995,-1525.66251247,7.398e-05,2]
[344048681,1733247032006,-5046.53458349,7.398e-05,2]
[344048682,1733247032018,-1253.33713129,7.399e-05,2]
[344048683,1733247032041,-150.0,7.399e-05,2]
[344048684,1733247032064,-27679.34527274,7.4e-05,2]
[344048685,1733247032093,-20395.9,7.4e-05,2]
[344048686,1733247032119,-37240.0,7.4e-05,2]
[344048687,1733247032145,-750.37477044,7.4e-05,2]
[344048688,1733247032186,-9535.17963535,7.4e-05,2]
[344048689,1733247032246,-9732.82983115,7.4e-05,2]
[344048690,1733247032274,-70797.43151186,7.4e-05,2]
[344048691,1733247032300,-1097.95352003,7.4e-05,2]
[344048692,1733247032329,-6359.5752212,7.4e-05,2]
[344048693,1733247032384,-1209.496,7.4e-05,2]
[344048694,1733247032397,-326.9199998,7.4e-05,2]
[344048695,1733247032434,-7336.02770436,7.4e-05,2]
[344048696,1733247032446,-10418.19018847,7.4e-05,2]
[344048697,1733247032459,-646.9888024,7.4e-05,2]
[344048698,1733247032472,-513.38219973,7.4e-05,2]
[344048699,1733247032484,-602.0,7.4e-05,2]
[344048700,1733247032528,-406.37685916,7.4e-05,2]
[344048701,1733247032538,-2635.57028227,7.4e-05,2]
[344048702,1733247032551,-12271.64867051,7.4e-05,2]
[344048703,1733247032564,-1096.10478348,7.4e-05,2]
[344048733,1733247034746,-1703.61103245,7.4e-05,2]
[344048736,1733247034758,-501.70682228,7.4e-05,2]
[344048739,1733247034770,-24821.08614636,7.4e-05,2]
[344048819,1733247037774,-4699.45078869,7.4e-05,2]
[344048821,1733247037785,-2642.87674843,7.4e-05,2]
[344048822,1733247037860,-252.92,7.4e-05,2]
[344048823,1733247037872,-4198.75711236,7.4e-05,2]
[344048824,1733247037884,-6596.03655,7.4e-05,2]
[344048825,1733247037896,-155476.1296476,7.4e-05,2]
[344048826,1733247037914,-7722.4176,7.4e-05,2]
[344048827,1733247037971,-73381.68381557,7.4e-05,2]
[344048828,1733247037981,-637.81700986,7.4e-05,2]
[344048829,1733247037991,-2100.0,7.4e-05,2]
[344048830,1733247038001,-1964.0,7.4e-05,2]
[344048831,1733247038011,-1354.0,7.4e-05,2]
[344048832,1733247038020,-1898.0,7.4e-05,2]
[344048833,1733247038031,-1000.0,7.4e-05,2]
[344048834,1733247038045,-974.03,7.4e-05,2]
[344048835,1733247038054,-400.0,7.5e-05,2]
[344048836,1733247038064,-300.0,7.5e-05,2]
[344048837,1733247038075,-1504.0,7.546e-05,2]
[344048838,1733247038085,-8802.99686178,7.6e-05,2]
[344048839,1733247038095,-2500.0,7.6e-05,2]
[344048840,1733247038105,-2500.0,7.6e-05,2]
[344048841,1733247038115,-2500.0,7.6e-05,2]
[344048842,1733247038125,-400.0,7.6e-05,2]
[344048843,1733247038135,-152.29,7.63e-05,2]
[344048844,1733247038144,-150.0,7.63e-05,2]
[344048845,1733247038154,-368.19,7.63e-05,2]
[344048846,1733247038167,-150.0,7.63e-05,2]
[344048847,1733247038177,-434.96,7.63e-05,2]
[344048848,1733247038187,-152.38,7.63e-05,2]
[344048849,1733247038197,-434.96,7.63e-05,2]
[344048850,1733247038207,-162.1,7.63e-05,2]
[344048851,1733247038217,-302.98,7.63e-05,2]
[344048852,1733247038227,-500.0,7.671e-05,2]
[344048853,1733247038237,-244935.86129545,7.69e-05,2]
[344048854,1733247038247,-150.0,7.699e-05,2]
[344048855,1733247038257,-1347.99,7.699e-05,2]
[344048857,1733247038266,-2000.0,7.699e-05,2]
[344048859,1733247038276,-76429.97439247,7.699e-05,2]
[344048862,1733247038369,-12565.08436148,7.699e-05,2]
[344048864,1733247038379,-520.0,7.7e-05,2]
[344048865,1733247038390,-15878295.01661169,7.7e-05,2]
[344048936,1733247039101,-212864.17900532,7.7e-05,2]
[344048943,1733247039154,-2957.66111518,7.7e-05,2]
[344048948,1733247039188,-41406.2660853,7.7e-05,2]
[344048950,1733247039199,-497.00456699,7.7e-05,2]
[344049037,1733247040082,-758.01,7.7e-05,2]
[344049289,1733247042783,-1176.46146452,7.7e-05,2]
[344049300,1733247042888,-31999.5,7.7e-05,2]
[344049303,1733247042899,-8663.53094863,7.7e-05,2]
[344049316,1733247043002,-1956.85896199,7.7e-05,2]
[344049319,1733247043023,-675.60039227,7.7e-05,2]
[344049329,1733247043112,-9953.89146788,7.7e-05,2]
[344049331,1733247043123,-6005.73540058,7.7e-05,2]
[344049407,1733247045808,-974.03,7.4e-05,2]
[344049408,1733247045820,-73438.77000005,7.7e-05,2]
[344049409,1733247045832,-22099.99999889,7.7e-05,2]
[344049410,1733247045899,-356.64186,7.7e-05,2]
[344049411,1733247045910,-748.5516374,7.7e-05,2]
[344049412,1733247045988,-278.58917087,7.7e-05,2]
[344049413,1733247046075,-66300.000005,7.7e-05,2]
[344049414,1733247046095,-112563.9565249,7.7e-05,2]
[344049945,1733247207860,13925.52,7.045e-05,2]
[344049946,1733247245628,250.0,7.026e-05,2]
[344049947,1733247274301,1000.0,0.00023,120]
[344049949,1733247284922,250.0,7.01e-05,2]
[344049950,1733247345194,339.52989402,7.1e-05,2]
[344049951,1733247399041,478.5,6.981e-05,2]
[344049956,1733247420137,305.56,7.054e-05,2]
[344049957,1733247511980,2930.295,7.154e-05,2]
[344049958,1733247512281,185.93578628,7.154e-05,2]
[344049959,1733247573131,200.0,6.941e-05,2]
[344049965,1733247730543,150.0,0.00023,120]
[344049971,1733247970466,350.6,7.163e-05,2]
[344049972,1733247997657,250.0,6.924e-05,2]
[344049984,1733248051209,250.0,6.918e-05,2]
[344049994,1733248217134,780.85,6.986e-05,2]
[344050003,1733248232245,-214.60880691,7.2e-05,2]
[344050004,1733248232254,-150.0,7.299e-05,2]
[344050005,1733248232264,-197873.38748472,7.3e-05,2]
[344050006,1733248232275,-3069.99264566,7.3e-05,2]
[344050007,1733248232309,-4847.0589,7.3e-05,2]
[344050008,1733248232321,-61220.05875369,7.3e-05,2]
[344050009,1733248232340,-4029.70223122,7.3e-05,2]
[344050011,1733248232370,-545.39946931,7.3e-05,2]
[344050014,1733248232400,-8021.29140562,7.3e-05,2]
[344050016,1733248232411,-18393.10910978,7.3e-05,2]
[344050018,1733248232420,-245000.0,7.3e-05,2]
[344050020,1733248232429,-3018.978,7.3e-05,2]
[344050022,1733248232439,-73704.16092826,7.5e-05,2]
[344050024,1733248232448,-4923.00435436,7.6e-05,2]
[344050026,1733248232457,-2500.0,7.6e-05,2]
[344050028,1733248232466,-1000.0,7.6e-05,2]
[344050030,1733248232475,-150.0,7.644e-05,2]
[344050031,1733248232485,-508.87350147,7.673e-05,2]
[344050033,1733248232495,-499.0,7.673e-05,2]
[344050035,1733248232504,-500.0,7.673e-05,2]
[344050037,1733248232514,-580.08368718,7.678e-05,2]
[344050039,1733248232523,-435.18,7.68e-05,2]
[344050040,1733248232533,-580.08368718,7.683e-05,2]
[344050042,1733248232542,-580.08368718,7.689e-05,2]
[344050044,1733248232551,-580.08368718,7.69e-05,2]
[344050046,1733248232561,-580.08368718,7.69e-05,2]
[344050047,1733248232571,-580.08368718,7.693e-05,2]
[344050049,1733248232581,-150.0,7.699e-05,2]
[344050051,1733248232591,-163.35348896,7.699e-05,2]
[344050053,1733248232600,-2000.0,7.699e-05,2]
[344050055,1733248232610,-2000.0,7.699e-05,2]
[344050056,1733248232620,-2000.0,7.699e-05,2]
[344050057,1733248232632,-2000.0,7.699e-05,2]
[344050058,1733248232642,-2000.0,7.699e-05,2]
[344050059,1733248232651,-180.6617463,7.699e-05,2]
[344050060,1733248232660,-196.05600381,7.699e-05,2]
[344050061,1733248232670,-200.80041597,7.699e-05,2]
[344050062,1733248232679,-11277.42127152,7.699e-05,2]
[344050063,1733248232689,-4638.13093544,7.699e-05,2]
[344050064,1733248232699,-1368.82,7.699e-05,2]
[344050065,1733248232709,-76429.97439347,7.699e-05,2]
[344050066,1733248232718,-268032.3078326,7.7e-05,2]
[344050067,1733248232730,-111837.51923367,7.7e-05,2]
[344050086,1733248238012,-2238.58068732,7.7e-05,2]
[344050088,1733248238050,-6190.25308634,7.7e-05,2]
[344050089,1733248238088,-469.47332746,7.7e-05,2]
[344050090,1733248238135,-15971158.0653657,7.7e-05,2]
[344050156,1733248240713,-86952.03347576,7.7e-05,2]
[344050159,1733248240728,-1653.2820259,7.7e-05,2]
[344050161,1733248240739,-10322.31813472,7.7e-05,2]
[344050163,1733248240751,-6689.08724893,7.7e-05,2]
[344050165,1733248240762,-1880.34026575,7.7e-05,2]
[344050167,1733248240773,-356.49226848,7.7e-05,2]
[344050173,1733248240816,-993.262,7.7e-05,2]
[344050175,1733248240828,-888.28186868,7.7e-05,2]
[344050180,1733248240866,-514.74890589,7.7e-05,2]
[344050182,1733248240877,-1406.45,7.7e-05,2]
[344050184,1733248240889,-3512.92313574,7.7e-05,2]
[344050365,1733248243077,-11831.04819473,7.7e-05,2]
[344050366,1733248243147,-27212.82597657,7.7e-05,2]
[344050367,1733248243175,-11805.58795585,7.7e-05,2]
[344050368,1733248243186,-4965.3946995,7.7e-05,2]
[344050369,1733248243285,-650.81838827,7.7e-05,2]
[344050370,1733248243297,-126960.98642078,7.7e-05,2]
[344050371,1733248245417,200.0,7.137e-05,2]
[344050372,1733248245925,-21293.55876957,7.7e-05,2]
[344050373,1733248245963,-3805.83436776,7.7e-05,2]
[344050374,1733248245974,-1440.0997702,7.7e-05,2]
[344050375,1733248245986,-2402.7,7.7e-05,2]
[344050376,1733248246083,-3603.65677913,7.7e-05,2]
[344050379,1733248246426,-938.85102354,7.7e-05,2]
[344050392,1733248257334,10000.0,0.00012,25]
[344050400,1733248475027,30694.0,7.111e-05,2]
[344050409,1733248741017,13000.0,7.163e-05,2]
[344050411,1733248741634,300.0,7.162e-05,2]
[344050412,1733248768840,250.0,7.029e-05,2]
[344050416,1733248937182,286.48,7.02e-05,2]
[344050420,1733249021299,1000.0,7.1e-05,2]
[344050439,1733249388106,250.0,6.991e-05,2]
[344050445,1733249432327,-150.0,7.199e-05,2]
[344050446,1733249432337,-300.0,7.199e-05,2]
[344050447,1733249432346,-1984.5,7.2e-05,2]
[344050448,1733249432358,-409.3181757,7.2e-05,2]
[344050449,1733249432395,-449.5270887,7.2e-05,2]
[344050450,1733249432407,-800.4859381,7.2e-05,2]
[344050475,1733249438336,-294356.1687975,7.2e-05,2]
[344050476,1733249438345,-20939.0,7.2e-05,2]
[344050477,1733249438355,-3729.70223122,7.2e-05,2]
[344050478,1733249438365,-194990.8137,7.6e-05,2]
[344050479,1733249438375,-627.7116067,7.6e-05,2]
[344050480,1733249438384,-627.71160669,7.6e-05,2]
[344050481,1733249438394,-2500.0,7.6e-05,2]
[344050482,1733249438403,-500.0,7.644e-05,2]
[344050483,1733249438413,-435.06276538,7.681e-05,2]
[344050484,1733249438423,-435.06276538,7.685e-05,2]
[344050485,1733249438432,-435.06276538,7.691e-05,2]
[344050486,1733249438442,-435.06276538,7.691e-05,2]
[344050487,1733249438451,-435.06276538,7.694e-05,2]
[344050488,1733249438461,-435.06276538,7.695e-05,2]
[344050489,1733249438471,-2344.236,7.697e-05,2]
[344050490,1733249438480,-150.0,7.699e-05,2]
[344050491,1733249438490,-2000.0,7.699e-05,2]
[344050492,1733249438499,-2000.0,7.699e-05,2]
[344050493,1733249438509,-632.711,7.699e-05,2]
[344050494,1733249438519,-7083.19,7.699e-05,2]
[344050495,1733249438528,-2000.0,7.699e-05,2]
[344050496,1733249438538,-1311.79,7.699e-05,2]
[344050497,1733249438548,-12622892.52968494,7.7e-05,2]
[344050498,1733249438557,-2127.0,7.7e-05,2]
[344050499,1733249438568,-25000.0,7.7e-05,2]
[344050500,1733249438578,-394110.66385693,7.7e-05,2]